fUST/lending_fUST_20250901
["ID","MTS","AMOUNT","RATE_DAILY","PERIOD"]
[382723040,1756721553376,500.0,0.00013397,2]
[382723041,1756721553562,228.55806521,0.00013397,2]
[382723042,1756721553640,500.0,0.00013397,2]
[382723043,1756721553695,500.0,0.00013397,2]
[382723044,1756721554151,500.0,0.00013397,2]
[382723045,1756721554220,500.0,0.00013397,2]
[382723046,1756721554289,500.0,0.00013397,2]
[382723047,1756721554321,500.0,0.00013397,2]
[382723048,1756721554884,500.0,0.00013397,2]
[382723049,1756721554929,296.30182363,0.00013397,2]
[382723050,1756721554966,352.16132917,0.00013397,2]
[382723051,1756721554996,500.0,0.00013397,2]
[382723052,1756721555203,233.10280317,0.00013397,2]
[382723053,1756721555239,500.0,0.00013397,2]
[382723054,1756721555296,161.76998948,0.00013397,2]
[382723055,1756721570399,300.0,0.00013397,2]
[382723056,1756721583166,138.83036064,0.00013397,2]
[382723057,1756721583191,161.16963936,0.00013397,2]
[382723058,1756721646021,300.0,0.00013397,2]
[382723059,1756721702700,300.0,0.00013397,2]
[382723060,1756721703539,300.0,0.00013397,2]
[382723061,1756721704874,426.0,0.00013397,2]
[382723062,1756721719516,151.0,0.000131,2]
[382723063,1756721719825,151.0,0.000128,2]
[382723064,1756721720158,151.0,0.000124,2]
[382723065,1756721763092,300.0,0.00013397,2]
[382723066,1756721766259,167.93995831,0.00013398,2]
[382723067,1756721813971,1685.65789537,0.00013298,2]
[382723068,1756721822564,300.0,0.00013397,2]
[382723069,1756721881998,4446.9199474,0.00013298,2]
[382723070,1756721883687,300.0,0.00013397,2]
[382723071,1756721896247,859.32255956,0.00012652,2]
[382723072,1756721896268,9140.67744044,0.00012652,2]
[382723073,1756721943351,300.0,0.00013397,2]
[382723074,1756721974887,559.33255956,0.00012996,2]
[382723075,1756721974924,200.28782882,0.00012996,2]
[382723076,1756721975313,183.264636,0.00013131,2]
[382723077,1756722003236,300.0,0.00013397,2]
[382723078,1756722046275,500.542,0.00030564,60]
[382723079,1756722063243,300.0,0.00013397,2]
[382723080,1756722123004,300.0,0.00013397,2]
[382723081,1756722127277,178.81908092,0.00012861,2]
[382723082,1756722129762,715.27632367,0.00012861,2]
[382723083,1756722132466,1609.37172826,0.00012861,2]
[382723084,1756722134968,2861.10529469,0.00012861,2]
[382723085,1756722136920,3351.88510764,0.00012861,2]
[382723086,1756722136942,1118.59191531,0.00012861,2]
[382723087,1756722138985,6437.48691305,0.00012861,2]
[382723088,1756722139608,-2303.89017661,0.00013398,2]
[382723089,1756722140785,8753.37283001,0.00012861,2]
[382723090,1756722146878,152.193412,0.0002493,30]
[382723091,1756722154781,1348.52631628,0.00013298,2]
[382723092,1756722172827,3891.05495394,0.00013298,2]
[382723093,1756722175348,1019.92696544,0.00024,30]
[382723094,1756722183845,300.0,0.00013397,2]
[382723095,1756722241686,340.09652249,0.00012861,2]
[382723096,1756722243062,300.0,0.00013397,2]
[382723097,1756722244084,1360.38608998,0.00012861,2]
[382723098,1756722246871,2459.94611731,0.00012861,2]
[382723099,1756722246895,600.92258514,0.00012861,2]
[382723100,1756722248889,5436.10281554,0.00012861,2]
[382723103,1756722302549,300.0,0.00013397,2]
[382723119,1756722453156,3404.67308475,0.00013298,2]
[382723128,1756722468400,258.31151457,0.00012658,2]
[382723129,1756722468427,407.68848543,0.00012658,2]
[382723137,1756722483647,300.0,0.00013397,2]
[382723141,1756722495465,1078.82105304,0.00013298,2]
[382723156,1756722543755,300.0,0.00013397,2]
[382723172,1756722603084,300.0,0.00013397,2]
[382723215,1756722632088,-602.4512915,0.00013398,2]
[382723217,1756722632100,-86742.58382101,0.00013398,2]
[382723410,1756722638135,-187646.69487511,0.00013398,2]
[382723411,1756722638145,-157.14661163,0.00013398,2]
[382723412,1756722638154,-151.0,0.000135,2]
[382723413,1756722638163,-1078.821053,0.0001351,2]
[382723414,1756722638171,-1000.0,0.00013598,2]
[382723415,1756722638180,-300.0,0.00013665,2]
[382723416,1756722638189,-300.0,0.00013665,2]
[382723417,1756722638198,-300.0,0.00013665,2]
[382723418,1756722638207,-300.0,0.00013665,2]
[382723419,1756722638215,-300.0,0.00013665,2]
[382723420,1756722638225,-300.0,0.00013665,2]
[382723421,1756722638234,-300.0,0.00013665,2]
[382723422,1756722638243,-300.0,0.00013665,2]
[382723423,1756722638252,-300.0,0.00013665,2]
[382723424,1756722638261,-300.0,0.00013665,2]
[382723425,1756722638270,-300.0,0.00013665,2]
[382723426,1756722638279,-300.0,0.00013665,2]
[382723427,1756722638289,-300.0,0.00013665,2]
[382723429,1756722638298,-300.0,0.00013665,2]
[382723431,1756722638307,-300.0,0.00013665,2]
[382723433,1756722638316,-600.0,0.00013665,2]
[382723435,1756722638326,-500.0,0.00013673,2]
[382723437,1756722638335,-336.24075402,0.00013673,2]
[382723439,1756722638345,-500.0,0.00013673,2]
[382723441,1756722638354,-500.0,0.00013673,2]
[382723443,1756722638364,-500.0,0.00013673,2]
[382723445,1756722638373,-500.0,0.00013673,2]
[382723447,1756722638383,-500.0,0.00013673,2]
[382723449,1756722638391,-500.0,0.00013673,2]
[382723451,1756722638400,-500.0,0.00013673,2]
[382723453,1756722638409,-500.0,0.00013673,2]
[382723455,1756722638419,-500.0,0.00013673,2]
[382723457,1756722638428,-500.0,0.00013673,2]
[382723459,1756722638437,-500.0,0.00013673,2]
[382723461,1756722638446,-500.0,0.00013673,2]
[382723463,1756722638455,-500.0,0.00013673,2]
[382723465,1756722638465,-382.10623144,0.00013673,2]
[382723467,1756722638475,-500.0,0.00013673,2]
[382723469,1756722638487,-151.0,0.00013685,2]
[382723471,1756722638496,-151.0,0.00013685,2]
[382723473,1756722638505,-250.0,0.00013685,2]
[382723475,1756722638514,-151.0,0.00013685,2]
[382723477,1756722638523,-151.0,0.00013685,2]
[382723479,1756722638533,-151.0,0.00013685,2]
[382723481,1756722638543,-500.0,0.00013685,2]
[382723483,1756722638553,-250.0,0.00013685,2]
[382723485,1756722638563,-250.0,0.00013685,2]
[382723487,1756722638573,-151.0,0.00013685,2]
[382723489,1756722638582,-151.0,0.00013685,2]
[382723491,1756722638591,-500.0,0.00013685,2]
[382723493,1756722638601,-250.0,0.00013685,2]
[382723495,1756722638611,-250.0,0.00013685,2]
[382723497,1756722638620,-250.0,0.00013685,2]
[382723499,1756722638630,-151.0,0.00013685,2]
[382723501,1756722638643,-151.0,0.00013685,2]
[382723503,1756722638652,-500.0,0.00013685,2]
[382723505,1756722638661,-250.0,0.00013685,2]
[382723507,1756722638671,-250.0,0.00013685,2]
[382723509,1756722638681,-250.0,0.00013685,2]
[382723511,1756722638691,-151.0,0.00013685,2]
[382723513,1756722638701,-151.0,0.00013685,2]
[382723515,1756722638711,-500.0,0.00013685,2]
[382723516,1756722638722,-250.0,0.00013685,2]
[382723518,1756722638733,-250.0,0.00013685,2]
[382723520,1756722638742,-250.0,0.00013685,2]
[382723522,1756722638751,-151.0,0.00013685,2]
[382723524,1756722638760,-151.0,0.00013685,2]
[382723526,1756722638769,-250.0,0.00013685,2]
[382723528,1756722638778,-500.0,0.00013685,2]
[382723531,1756722638789,-250.0,0.00013685,2]
[382723533,1756722638798,-250.0,0.00013685,2]
[382723535,1756722638808,-151.0,0.00013685,2]
[382723537,1756722638817,-151.0,0.00013685,2]
[382723539,1756722638827,-250.0,0.00013685,2]
[382723541,1756722638836,-500.0,0.00013685,2]
[382723542,1756722638846,-250.0,0.00013685,2]
[382723544,1756722638855,-250.0,0.00013685,2]
[382723547,1756722638865,-151.0,0.00013685,2]
[382723549,1756722638874,-151.0,0.00013685,2]
[382723550,1756722638885,-250.0,0.00013685,2]
[382723552,1756722638894,-500.0,0.00013685,2]
[382723554,1756722638903,-250.0,0.00013685,2]
[382723556,1756722638913,-151.0,0.00013685,2]
[382723558,1756722638922,-250.0,0.00013685,2]
[382723560,1756722638931,-250.0,0.00013685,2]
[382723562,1756722638941,-500.0,0.00013685,2]
[382723564,1756722638950,-250.0,0.00013685,2]
[382723566,1756722638959,-151.0,0.00013685,2]
[382723568,1756722638969,-151.0,0.00013685,2]
[382723570,1756722638979,-250.0,0.00013685,2]
[382723573,1756722638989,-250.0,0.00013685,2]
[382723574,1756722638998,-500.0,0.00013685,2]
[382723576,1756722639009,-151.0,0.00013685,2]
[382723578,1756722639019,-250.0,0.00013685,2]
[382723580,1756722639028,-250.0,0.00013685,2]
[382723582,1756722639037,-250.0,0.00013685,2]
[382723584,1756722639047,-500.0,0.00013685,2]
[382723587,1756722639057,-256.90502967,0.00013685,2]
[382723588,1756722639066,-151.0,0.00013685,2]
[382723590,1756722639076,-250.0,0.00013685,2]
[382723593,1756722639088,-250.0,0.00013685,2]
[382723594,1756722639098,-500.0,0.00013685,2]
[382723597,1756722639107,-151.0,0.00013685,2]
[382723598,1756722639117,-2347.87260389,0.00013685,2]
[382723601,1756722639126,-1000.0,0.00013685,2]
[382723602,1756722639136,-1000.0,0.00013685,2]
[382723605,1756722639146,-1000.0,0.00013685,2]
[382723606,1756722639155,-1000.0,0.00013685,2]
[382723608,1756722639165,-209.40437684,0.00013685,2]
[382723611,1756722639174,-151.0,0.00013685,2]
[382723613,1756722639184,-151.0,0.00013685,2]
[382723615,1756722639193,-151.0,0.00013685,2]
[382723616,1756722639202,-151.0,0.00013685,2]
[382723619,1756722639212,-156.587,0.00013685,2]
[382723621,1756722639222,-153.38734499,0.00013685,2]
[382723623,1756722639231,-500.0,0.00013698,2]
[382723625,1756722639242,-445.43683791,0.00013698,2]
[382723627,1756722639251,-480.0,0.00013698,2]
[382723629,1756722639260,-482.14795609,0.00013698,2]
[382723631,1756722639270,-483.7328793,0.00013698,2]
[382723633,1756722639279,-156.14073977,0.00013698,2]
[382723635,1756722639288,-482.53434407,0.00013698,2]
[382723637,1756722639297,-480.0,0.00013698,2]
[382723639,1756722639307,-481.05053477,0.00013698,2]
[382723641,1756722639319,-480.0,0.00013698,2]
[382723643,1756722639328,-480.0,0.00013698,2]
[382723645,1756722639339,-295.12593839,0.00013698,2]
[382723647,1756722639349,-482.14472547,0.00013698,2]
[382723649,1756722639359,-480.0,0.00013698,2]
[382723651,1756722639368,-480.0,0.00013698,2]
[382723653,1756722639377,-480.0,0.00013698,2]
[382723655,1756722639387,-480.0,0.00013698,2]
[382723657,1756722639396,-480.0,0.00013698,2]
[382723659,1756722639405,-480.0,0.00013698,2]
[382723661,1756722639415,-480.0,0.00013698,2]
[382723663,1756722639424,-480.0,0.00013698,2]
[382723665,1756722639433,-157.4141734,0.00013698,2]
[382723667,1756722639442,-213.07700763,0.00013698,2]
[382723669,1756722639452,-480.0,0.00013698,2]
[382723671,1756722639461,-483.02386674,0.00013698,2]
[382723673,1756722639471,-480.0,0.00013698,2]
[382723675,1756722639480,-480.0,0.00013698,2]
[382723677,1756722639489,-480.0,0.00013698,2]
[382723678,1756722639498,-481.91405631,0.00013698,2]
[382723681,1756722639508,-448.87888543,0.00013698,2]
[382723683,1756722639518,-481.78947905,0.00013698,2]
[382723685,1756722639527,-480.0,0.00013698,2]
[382723686,1756722639536,-482.59676014,0.00013698,2]
[382723688,1756722639546,-559.79,0.00013698,2]
[382723690,1756722639556,-480.0,0.00013698,2]
[382723692,1756722639565,-480.0,0.00013698,2]
[382723694,1756722639574,-480.0,0.00013698,2]
[382723696,1756722639583,-480.0,0.00013698,2]
[382723698,1756722639592,-480.0,0.00013698,2]
[382723700,1756722639601,-480.0,0.00013698,2]
[382723702,1756722639610,-480.0,0.00013698,2]
[382723704,1756722639620,-480.0,0.00013698,2]
[382723706,1756722639631,-480.0,0.00013698,2]
[382723708,1756722639645,-480.0,0.00013698,2]
[382723710,1756722639655,-480.0,0.00013698,2]
[382723712,1756722639666,-482.59135231,0.00013698,2]
[382723714,1756722639676,-480.0,0.00013698,2]
[382723716,1756722639687,-480.0,0.00013698,2]
[382723718,1756722639696,-480.0,0.00013698,2]
[382723720,1756722639707,-480.0,0.00013698,2]
[382723722,1756722639717,-458.75755418,0.00013698,2]
[382723724,1756722639727,-481.10739346,0.00013698,2]
[382723726,1756722639736,-519.92539704,0.00013698,2]
[382723728,1756722639745,-480.0,0.00013698,2]
[382723730,1756722639754,-480.0,0.00013698,2]
[382723732,1756722639764,-480.0,0.00013698,2]
[382723734,1756722639773,-480.0,0.00013698,2]
[382723736,1756722639783,-480.0,0.00013698,2]
[382723738,1756722639793,-911.72,0.00013698,2]
[382723740,1756722639802,-480.0,0.00013698,2]
[382723742,1756722639812,-480.0,0.00013698,2]
[382723744,1756722639821,-480.0,0.00013698,2]
[382723746,1756722639830,-480.0,0.00013698,2]
[382723748,1756722639840,-480.0,0.00013698,2]
[382723750,1756722639849,-480.0,0.00013698,2]
[382723752,1756722639858,-490.4360983,0.00013698,2]
[382723754,1756722639868,-480.0,0.00013698,2]
[382723756,1756722639876,-480.0,0.00013698,2]
[382723758,1756722639886,-1000.0,0.00013698,2]
[382723760,1756722639895,-480.0,0.00013698,2]
[382723762,1756722639905,-854.8,0.00013698,2]
[382723764,1756722639914,-854.8,0.00013698,2]
[382723766,1756722639923,-854.8,0.00013698,2]
[382723768,1756722639932,-854.8,0.00013698,2]
[382723770,1756722639942,-854.8,0.00013698,2]
[382723772,1756722639951,-854.8,0.00013698,2]
[382723774,1756722639962,-854.8,0.00013698,2]
[382723776,1756722639971,-854.8,0.00013698,2]
[382723778,1756722639981,-854.8,0.00013698,2]
[382723780,1756722639992,-854.8,0.00013698,2]
[382723782,1756722640001,-854.8,0.00013698,2]
[382723784,1756722640011,-854.8,0.00013698,2]
[382723786,1756722640020,-854.8,0.00013698,2]
[382723788,1756722640030,-854.8,0.00013698,2]
[382723790,1756722640039,-854.8,0.00013698,2]
[382723792,1756722640050,-854.8,0.00013698,2]
[382723794,1756722640059,-854.8,0.00013698,2]
[382723796,1756722640069,-854.8,0.00013698,2]
[382723798,1756722640078,-854.8,0.00013698,2]
[382723800,1756722640087,-480.0,0.00013698,2]
[382723802,1756722640096,-482.83658517,0.00013698,2]
[382723804,1756722640106,-481.7619985,0.00013698,2]
[382723806,1756722640115,-480.00000001,0.00013698,2]
[382723808,1756722640125,-480.0,0.00013698,2]
[382723810,1756722640135,-482.03287262,0.00013698,2]
[382723812,1756722640144,-480.0,0.00013698,2]
[382723814,1756722640153,-480.0,0.00013698,2]
[382723816,1756722640162,-480.0,0.00013698,2]
[382723818,1756722640171,-516.47661945,0.00013698,2]
[382723820,1756722640180,-480.0,0.00013698,2]
[382723822,1756722640189,-480.0,0.00013698,2]
[382723824,1756722640199,-480.0,0.00013698,2]
[382723826,1756722640211,-480.0,0.00013698,2]
[382723828,1756722640220,-480.0,0.00013698,2]
[382723830,1756722640230,-480.0,0.00013698,2]
[382723833,1756722640239,-480.0,0.00013698,2]
[382723835,1756722640250,-529.82,0.00013698,2]
[382723836,1756722640259,-480.0,0.00013698,2]
[382723838,1756722640269,-480.0,0.00013698,2]
[382723840,1756722640278,-500.0,0.00013698,2]
[382723842,1756722640287,-500.0,0.00013698,2]
[382723844,1756722640296,-500.0,0.00013698,2]
[382723846,1756722640305,-500.0,0.00013698,2]
[382723848,1756722640315,-500.0,0.00013698,2]
[382723850,1756722640323,-500.0,0.00013698,2]
[382723852,1756722640333,-500.0,0.00013698,2]
[382723854,1756722640342,-500.0,0.00013698,2]
[382723856,1756722640352,-539.63262941,0.00013698,2]
[382723859,1756722640361,-480.0,0.00013698,2]
[382723861,1756722640371,-480.0,0.00013698,2]
[382723862,1756722640381,-480.0,0.00013698,2]
[382723864,1756722640390,-270.98948673,0.00013698,2]
[382723866,1756722640401,-480.0,0.00013698,2]
[382723869,1756722640410,-480.0,0.00013698,2]
[382723870,1756722640420,-480.0,0.00013698,2]
[382723872,1756722640429,-480.0,0.00013698,2]
[382723874,1756722640439,-480.0,0.00013698,2]
[382723876,1756722640448,-480.0,0.00013698,2]
[382723878,1756722640458,-480.0,0.00013698,2]
[382723880,1756722640468,-480.0,0.00013698,2]
[382723882,1756722640477,-480.0,0.00013698,2]
[382723884,1756722640487,-480.0,0.00013698,2]
[382723886,1756722640496,-496.88535369,0.00013698,2]
[382723889,1756722640507,-480.0,0.00013698,2]
[382723891,1756722640516,-480.0,0.00013698,2]
[382723893,1756722640526,-480.0,0.00013698,2]
[382723895,1756722640535,-480.0,0.00013698,2]
[382723897,1756722640545,-480.0,0.00013698,2]
[382723899,1756722640554,-480.0,0.00013698,2]
[382723901,1756722640564,-480.0,0.00013698,2]
[382723903,1756722640573,-480.0,0.00013698,2]
[382723905,1756722640582,-481.71332384,0.00013698,2]
[382723907,1756722640592,-480.0,0.00013698,2]
[382723909,1756722640601,-480.0,0.00013698,2]
[382723911,1756722640610,-480.0,0.00013698,2]
[382723913,1756722640619,-480.0,0.00013698,2]
[382723914,1756722640629,-480.0,0.00013698,2]
[382723916,1756722640640,-480.0,0.00013698,2]
[382723918,1756722640650,-480.0,0.00013698,2]
[382723920,1756722640659,-480.0,0.00013698,2]
[382723922,1756722640667,-166.99133856,0.00013698,2]
[382723924,1756722640678,-480.0,0.00013698,2]
[382723926,1756722640688,-480.0,0.00013698,2]
[382723928,1756722640697,-423.43040202,0.00013698,2]
[382723930,1756722640706,-480.0,0.00013698,2]
[382723932,1756722640718,-480.0,0.00013698,2]
[382723934,1756722640727,-531.71312996,0.00013698,2]
[382723936,1756722640736,-480.0,0.00013698,2]
[382723938,1756722640745,-480.0,0.00013698,2]
[382723940,1756722640754,-480.0,0.00013698,2]
[382723942,1756722640763,-480.0,0.00013698,2]
[382723944,1756722640773,-480.0,0.00013698,2]
[382723946,1756722640783,-480.0,0.00013698,2]
[382723948,1756722640793,-313.4301377,0.00013698,2]
[382723950,1756722640803,-480.0,0.00013698,2]
[382723952,1756722640812,-480.0,0.00013698,2]
[382723954,1756722640821,-281.33145424,0.00013698,2]
[382723956,1756722640831,-481.58686679,0.00013698,2]
[382723959,1756722640841,-480.0,0.00013698,2]
[382723961,1756722640850,-480.0,0.00013698,2]
[382723963,1756722640859,-480.0,0.00013698,2]
[382723965,1756722640869,-500.0,0.00013698,2]
[382723967,1756722640879,-500.0,0.00013698,2]
[382723969,1756722640888,-472.41800137,0.00013698,2]
[382723971,1756722640897,-481.86596231,0.00013698,2]
[382723973,1756722640906,-481.64271792,0.00013698,2]
[382723975,1756722640915,-480.0,0.00013698,2]
[382723977,1756722640925,-480.0,0.00013698,2]
[382723979,1756722640934,-480.0,0.00013698,2]
[382723981,1756722640943,-480.0,0.00013698,2]
[382723983,1756722640952,-480.0,0.00013698,2]
[382723985,1756722640961,-480.0,0.00013698,2]
[382723987,1756722640971,-480.0,0.00013698,2]
[382723989,1756722640980,-480.0,0.00013698,2]
[382723990,1756722640990,-480.0,0.00013698,2]
[382723993,1756722641000,-480.0,0.00013698,2]
[382723995,1756722641009,-548.95,0.00013698,2]
[382723997,1756722641020,-480.0,0.00013698,2]
[382723999,1756722641030,-480.0,0.00013698,2]
[382724001,1756722641039,-480.0,0.00013698,2]
[382724003,1756722641051,-480.0,0.00013698,2]
[382724005,1756722641060,-334.40506512,0.00013698,2]
[382724007,1756722641069,-480.0,0.00013698,2]
[382724008,1756722641079,-656.27,0.00013698,2]
[382724010,1756722641088,-480.0,0.00013698,2]
[382724012,1756722641097,-481.38516802,0.00013698,2]
[382724014,1756722641106,-480.0,0.00013698,2]
[382724016,1756722641115,-480.0,0.00013698,2]
[382724018,1756722641125,-480.0,0.00013698,2]
[382724021,1756722641134,-480.0,0.00013698,2]
[382724022,1756722641144,-480.0,0.00013698,2]
[382724024,1756722641153,-421.78350037,0.00013698,2]
[382724026,1756722641162,-480.0,0.00013698,2]
[382724028,1756722641171,-480.0,0.00013698,2]
[382724030,1756722641182,-481.46191792,0.00013698,2]
[382724032,1756722641191,-480.0,0.00013698,2]
[382724034,1756722641200,-480.0,0.00013698,2]
[382724036,1756722641209,-481.26547292,0.00013698,2]
[382724038,1756722641218,-581.81,0.00013698,2]
[382724040,1756722641228,-208.60472752,0.00013698,2]
[382724042,1756722641237,-480.0,0.00013698,2]
[382724044,1756722641246,-480.0,0.00013698,2]
[382724046,1756722641256,-273.32416421,0.00013698,2]
[382724048,1756722641265,-480.0,0.00013698,2]
[382724050,1756722641275,-480.0,0.00013698,2]
[382724052,1756722641284,-481.45661081,0.00013698,2]
[382724054,1756722641295,-480.0,0.00013698,2]
[382724056,1756722641303,-151.0,0.00013698,2]
[382724058,1756722641312,-480.0,0.00013698,2]
[382724060,1756722641322,-579.63703457,0.00013698,2]
[382724062,1756722641331,-425.35819495,0.00013698,2]
[382724064,1756722641340,-480.0,0.00013698,2]
[382724066,1756722641350,-480.0,0.00013698,2]
[382724068,1756722641359,-480.0,0.00013698,2]
[382724070,1756722641369,-980.09,0.00013698,2]
[382724072,1756722641378,-526.89653165,0.00013698,2]
[382724074,1756722641387,-508.74794958,0.00013698,2]
[382724077,1756722641397,-480.0,0.00013698,2]
[382724079,1756722641407,-480.0,0.00013698,2]
[382724080,1756722641416,-480.0,0.00013698,2]
[382724082,1756722641425,-480.0,0.00013698,2]
[382724084,1756722641434,-480.0,0.00013698,2]
[382724086,1756722641443,-480.0,0.00013698,2]
[382724088,1756722641453,-480.0,0.00013698,2]
[382724090,1756722641462,-480.0,0.00013698,2]
[382724092,1756722641472,-480.0,0.00013698,2]
[382724094,1756722641481,-483.77911761,0.00013698,2]
[382724096,1756722641490,-483.7942138,0.00013698,2]
[382724098,1756722641499,-481.53332325,0.00013698,2]
[382724101,1756722641509,-480.0,0.00013698,2]
[382724103,1756722641518,-480.0,0.00013698,2]
[382724105,1756722641528,-480.0,0.00013698,2]
[382724107,1756722641537,-480.0,0.00013698,2]
[382724109,1756722641549,-480.0,0.00013698,2]
[382724111,1756722641558,-480.0,0.00013698,2]
[382724112,1756722641568,-480.0,0.00013698,2]
[382724115,1756722641577,-480.0,0.00013698,2]
[382724117,1756722641587,-480.0,0.00013698,2]
[382724119,1756722641597,-885.62,0.00013698,2]
[382724121,1756722641606,-461.33591421,0.00013698,2]
[382724123,1756722641616,-543.37975257,0.00013698,2]
[382724125,1756722641625,-480.0,0.00013698,2]
[382724126,1756722641635,-665.4,0.00013698,2]
[382724128,1756722641648,-480.0,0.00013698,2]
[382724131,1756722641659,-497.27052301,0.00013698,2]
[382724133,1756722641669,-896.6,0.00013698,2]
[382724134,1756722641680,-480.0,0.00013698,2]
[382724136,1756722641690,-777.24,0.00013698,2]
[382724139,1756722641702,-480.0,0.00013698,2]
[382724140,1756722641712,-705.35,0.00013698,2]
[382724142,1756722641724,-787.89,0.00013698,2]
[382724144,1756722641733,-480.0,0.00013698,2]
[382724146,1756722641743,-481.50359992,0.00013698,2]
[382724148,1756722641752,-480.0,0.00013698,2]
[382724150,1756722641761,-480.0,0.00013698,2]
[382724152,1756722641771,-480.0,0.00013698,2]
[382724154,1756722641780,-480.0,0.00013698,2]
[382724156,1756722641789,-777.11,0.00013698,2]
[382724158,1756722641799,-482.75407497,0.00013698,2]
[382724160,1756722641809,-480.0,0.00013698,2]
[382724162,1756722641818,-480.0,0.00013698,2]
[382724164,1756722641827,-567.03920444,0.00013698,2]
[382724166,1756722641836,-480.0,0.00013698,2]
[382724168,1756722641845,-480.0,0.00013698,2]
[382724170,1756722641854,-480.0,0.00013698,2]
[382724172,1756722641863,-488.04670965,0.00013698,2]
[382724174,1756722641872,-481.40511799,0.00013698,2]
[382724176,1756722641882,-480.0,0.00013698,2]
[382724178,1756722641895,-480.0,0.00013698,2]
[382724181,1756722641905,-480.0,0.00013698,2]
[382724183,1756722641914,-480.0,0.00013698,2]
[382724184,1756722641923,-484.09405176,0.00013698,2]
[382724186,1756722641933,-484.62069244,0.00013698,2]
[382724188,1756722641942,-480.0,0.00013698,2]
[382724190,1756722641951,-480.0,0.00013698,2]
[382724192,1756722641960,-480.0,0.00013698,2]
[382724194,1756722641969,-1000.0,0.00013698,2]
[382724196,1756722641979,-480.0,0.00013698,2]
[382724198,1756722641988,-480.0,0.00013698,2]
[382724200,1756722641998,-480.0,0.00013698,2]
[382724202,1756722642007,-462.71427781,0.00013698,2]
[382724223,1756722642166,-761.14,0.00013698,2]
[382724225,1756722642197,-480.0,0.00013698,2]
[382724227,1756722642207,-480.0,0.00013698,2]
[382724229,1756722642216,-480.0,0.00013698,2]
[382724231,1756722642226,-480.0,0.00013698,2]
[382724233,1756722642235,-480.0,0.00013698,2]
[382724235,1756722642245,-812.69,0.00013698,2]
[382724237,1756722642254,-480.0,0.00013698,2]
[382724239,1756722642263,-480.0,0.00013698,2]
[382724241,1756722642273,-480.0,0.00013698,2]
[382724243,1756722642282,-556.46,0.00013698,2]
[382724245,1756722642293,-480.0,0.00013698,2]
[382724247,1756722642302,-480.0,0.00013698,2]
[382724249,1756722642312,-480.38441257,0.00013698,2]
[382724251,1756722642322,-480.0,0.00013698,2]
[382724252,1756722642331,-480.0,0.00013698,2]
[382724253,1756722642341,-480.0,0.00013698,2]
[382724254,1756722642353,-480.0,0.00013698,2]
[382724255,1756722642362,-480.0,0.00013698,2]
[382724256,1756722642371,-480.0,0.00013698,2]
[382724257,1756722642381,-480.0,0.00013698,2]
[382724258,1756722642390,-481.25496652,0.00013698,2]
[382724259,1756722642399,-439.53512927,0.00013698,2]